Cogmind - Beta 16 @@@ ROGUE MODE // 2025.10.30 @ 20:21:21 Player: Naughtyusername Result: Destroyed by IL-F4M(R) with Subdweller Laser Performance ------------- Evolutions (0) 0 Regions Visited (3) 600 Robots Destroyed (44) 220 Value Destroyed (1144) 1144 Prototype IDs (12) 240 Alien Tech Used (0) 0 Bonus (60) 60 TOTAL SCORE: 2264 Bonus ------- Follower Combat Kills 60 Cogmind --------- Core Integrity 0/250 Matter 104/300 Energy 200/200 System Corruption 0% Temperature Cool (6) Movement Treading (160) Location -10/Subcaves Parts ------- > --- POWER (1+3) ------ Subdweller Power Source > --- PROPULSION (2) --- Light Treads Light Treads > --- UTILITY (2) ------ Large Storage Unit Power Bank > --- WEAPON (2) ------- Battle Rifle Makeshift Shrapnel Gun > --- INVENTORY (15) --- Light Treads Cooling System Cooling System Seismic Detector Weapon Shielding Medium Armor Plating Medium Armor Plating Improved Trap Extractor (1/6 Shrapnel) Subdweller Beam Cannon Autogun Autogun Rocket Launcher Datajack Peak State ------------ > --- POWER ------------ Subdweller Power Source > --- PROPULSION ------- Light Treads Light Treads > --- UTILITY ---------- Large Storage Unit Power Bank > --- WEAPON ----------- Battle Rifle Makeshift Shrapnel Gun > --- INVENTORY -------- Light Treads Cooling System Cooling System Seismic Detector Weapon Shielding Medium Armor Plating Medium Armor Plating Improved Trap Extractor Subdweller Beam Cannon Autogun Autogun Rocket Launcher Datajack [Rating: 22] Favorites ----------- Power Ion Engine Engine Ion Engine Propulsion Light Treads Treads Light Treads Utility Large Storage Unit Device Seismic Detector Storage Large Storage Unit Processor Targeting Computer Protection Core Shielding Weapon Autogun Energy Cannon Subdweller Beam Cannon Ballistic Gun Autogun Launcher Rocket Launcher Build | -11 -10 -10 -10 ------- Run | Yrd Mat Min Sub Slots Evolved . | . . . . Power . | . . . . Propulsion . | . . . . Utility . | . . . . Weapon . | . . . . Parts Attached 33 | 7 8 4 14 Power 6 | 1 1 1 3 Engine 6 | 1 1 1 3 Core . | . . . . Reactor . | . . . . Propulsion 7 | 2 1 2 2 Treads 7 | 2 1 2 2 Leg . | . . . . Wheel . | . . . . Hover . | . . . . Flight . | . . . . Utility 9 | 2 4 . 3 Device 3 | 1 . . 2 Storage 2 | 1 1 . . Processor 1 | . 1 . . Hackware . | . . . . Protection 3 | . 2 . 1 Artifact . | . . . . Weapon 11 | 2 2 1 6 Energy Gun . | . . . . Energy Cannon 1 | . . . 1 Ballistic Gun 9 | 2 2 . 5 Ballistic Cannon . | . . . . Launcher 1 | . . 1 . Special Weapon . | . . . . Impact Weapon . | . . . . Slashing Weapon . | . . . . Piercing Weapon . | . . . . Special Melee Weapon . | . . . . Unidentified Prototypes . | . . . . Parts Lost 6 | . 1 . 5 Power 2 | . . . 2 Propulsion 2 | . . . 2 Utility 2 | . 1 . 1 Weapon . | . . . . Highest Loss Streak 2 | . 1 . 2 To Critical Strikes 1 | . . . 1 Average Backups 13 | . 11 14 14 Power . | . 1 . . Propulsion 3 | . 3 3 1 Utility 6 | . 4 8 7 Weapon 2 | . 1 2 3 Tool/Special . | . . . . Unused Backups 11 | . 2 1 8 Power . | . . . . Propulsion 1 | . . . 1 Utility 7 | . 1 1 5 Weapon 2 | . 1 . 1 Tool/Special 1 | . . . 1 Average Slot Usage (%) 99 | . 99 100 99 Engine 13 | . 14 14 13 Treads 27 | . 27 28 27 Storage 14 | . 14 14 14 Processor 9 | . 9 14 1 Protection 4 | . 4 . 12 Energy Cannon 2 | . . . 9 Ballistic Gun 24 | . 27 23 18 Launcher 1 | . . 4 . Peak Build Rating 22 | 7 11 11 22 Average Rating 10 | 5 10 11 12 On Entrance 7 | . 7 11 11 Avg Prop Armor Cover (%) . | . . . . Naked Turns . | . . . . Heaviest Build 38 | 14 38 32 38 Greatest Support 40 | 40 40 40 40 Greatest Overweight (x) . | . . . . Average Overweight (x) . | . . . . Largest Inventory Capacity 15 | 8 15 15 15 Average Capacity 14 | 7 13 15 15 Most Carried 15 | 1 14 15 15 Average Carried 13 | . 11 14 14 Final Capacity 15 | 8 15 15 15 Final Carried 15 | 1 14 15 13 Class Distribution -------------------- 100% | Mutant Dominant Class ---------------- Mutant | -10/Materials Mutant | -10/Mines Mutant | -10/Subcaves Resources | -11 -10 -10 -10 ----------- Run | Yrd Mat Min Sub Matter Collected 1529 | 277 691 125 436 Remotely . | . . . . Salvage Created 1656 | 105 796 260 495 Parts 101 | 8 52 16 25 Haulers Intercepted 2 | . 2 . . Recyclers Shooed 3 | 1 1 1 . Parts Field Recycled . | . . . . Retrieved Matter . | . . . . Parts Self-Destructed 10 | . . . 10 Prevented . | . . . . Parts Restored . | . . . . Kills | -11 -10 -10 -10 ------- Run | Yrd Mat Min Sub Combat Hostiles Destroyed 30 | . 16 2 12 Guns 27 | . 16 2 9 Cannons 2 | . . . 2 Classes Destroyed 8 | 2 5 . 1 Worker 3 | . 1 2 . Tunneler 4 | 1 2 1 . Hauler 2 | . 2 . . Recycler 3 | 1 . 2 . Watcher 2 | . 2 . . Swarmer 4 | . 3 . 1 Grunt 15 | . 13 2 . Subdweller 11 | . . . 11 Best Kill Streak 3 | 2 3 3 2 Combat Bots Only 2 | . 2 2 2 Max Kills in Single Turn 2 | 1 2 1 1 Gunslinging 1 | . 1 . . Exploded . | . . . . Melee . | . . . . Uniques/NPCs Destroyed . | . . . . Combat | -11 -10 -10 -10 -------- Run | Yrd Mat Min Sub Hostile Shots Fired 157 | . 83 7 67 Missed 36 | . 19 . 17 Hits 121 | . 64 7 50 Projectile 121 | . 64 7 50 Critical Strikes 2 | . 1 . 1 Damage Taken 1811 | . 684 87 1040 Core 253 | . 76 . 177 Absorbed by Shields . | . . . . Redirected to Shielding 36 | . . . 36 Core Remaining (%) 100 | 100 . . . Volleys Fired 179 | 4 80 14 81 Largest 2 | 2 2 2 2 Hottest 110 | 40 46 46 110 Shots Fired 348 | 8 160 21 159 Gun 306 | 8 160 14 124 Cannon 35 | . . . 35 Launcher 7 | . . 7 . Special . | . . . . Kinetic 306 | 8 160 14 124 Thermal 35 | . . . 35 Explosive 7 | . . 7 . Electromagnetic . | . . . . Robot Hit Streak 16 | 6 12 6 16 Robot Miss Streak 5 | 1 5 2 3 Penetration Max . | . . . . Secondary Targets 3 | . 1 1 1 Max Gunslinging Chain 1 | . 1 1 1 Shots Hit Robots 200 | 6 106 7 81 Core Hits 68 | 3 37 9 19 Critical Kills 2 | . . 1 1 Critical Parts Destroyed . | . . . . Critical Strikes 3 | . . 1 2 Meltdown 1 | . . . 1 Destroy 2 | . . 1 1 Melee Attacks . | . . . . Impact . | . . . . Slashing . | . . . . Piercing . | . . . . Sneak Attacks . | . . . . Combat Hostiles . | . . . . Follow-up Attacks . | . . . . Damage Inflicted 3196 | 61 1552 259 1324 Guns 2631 | 61 1490 111 969 Cannons 355 | . . . 355 Explosions . | . . . . Melee . | . . . . Ramming 210 | . 62 148 . Kinetic 2631 | 61 1490 111 969 Thermal 355 | . . . 355 Explosive . | . . . . Electromagnetic . | . . . . Impact . | . . . . Slashing . | . . . . Piercing . | . . . . Highest Corruption . | . . . . Average Corruption . | . . . . Corruption Purged . | . . . . Corruption Blocked . | . . . . Overload Shots . | . . . . Overflow Damage . | . . . . Projectiles . | . . . . Explosions . | . . . . Melee . | . . . . Knockbacks 2 | . . 2 . Impact 2 | . . 2 . Kinetic . | . . . . Secondary . | . . . . Self-Inflicted Damage . | . . . . Shots . | . . . . Rammed 42 | . 15 27 . Targets Rammed 45 | . 16 29 . Kicked . | . . . . Crushed 3 | . 1 2 . Highest Temperature 78 | . 78 24 42 Average Temperature 21 | . 23 8 15 Received Heat Transfer 591 | . 333 48 210 Siege Activations . | . . . . Martial Activations . | . . . . Shielding Activations . | . . . . Robots Disrupted . | . . . . Combat Hostiles . | . . . . Robots Corrupted . | . . . . Combat Hostiles . | . . . . Parts Fried . | . . . . Impact Corruptions . | . . . . Robots Melted 1 | . . . 1 Combat Hostiles 1 | . . . 1 Parts Melted 1 | . . . 1 Heat Transferred 481 | . . . 481 Parts Sabotaged . | . . . . Parts Stolen . | . . . . Parts Stripped . | . . . . Power Chain Reactions . | . . . . Alert | -11 -10 -10 -10 ------- Run | Yrd Mat Min Sub Maximum Alert Level . | . . . . Low Security (%) 100 | 100 100 100 . Level 1 . | . . . . Level 2 . | . . . . Level 3 . | . . . . Level 4 . | . . . . Level 5 . | . . . . High Security . | . . . . Max Security . | . . . . Peak Influence 121 | 5 121 78 . Initial 15 | . . 15 . Average 31 | . 55 6 . Influence Increases 795 | 10 550 140 95 Destroy 0b10 Robot/C 380 | . 320 40 20 Destroy 0b10 Robot/NC 70 | 10 35 25 . Destroy Leader 98 | . 88 10 . Allied During Kill 8 | . . 8 . Successful Hack 16 | . 16 . . Select Force Hacks 60 | . 60 . . Disable Machine 45 | . 30 15 . Destroy Structure 43 | . 1 42 . Lose Combat Pursuer 75 | . . . 75 Influence Decreases 742 | 10 511 159 62 Entered New Map 35 | . . 24 11 Time Decay 677 | 10 501 135 31 Lost Part 30 | . 10 . 20 Squads Dispatched 6 | . 6 . . Investigation 3 | . 3 . . Extermination . | . . . . Reinforcement 3 | . 3 . . Assault . | . . . . Garrison . | . . . . Intercept . | . . . . Searches Triggered . | . . . . Construction Impeded . | . . . . Haulers Reinforced . | . . . . Active Scanning Responses . | . . . . Cargo Convoy Interrupts . | . . . . Stealth | -11 -10 -10 -10 --------- Run | Yrd Mat Min Sub Distress Signals 1 | . 1 . . Communications Jammed . | . . . . Distress Signals . | . . . . Times Spotted 47 | . 28 2 17 Peak Tracking Total 3 | . 3 2 3 Tactical Retreats 1 | . . . 1 Traps | -11 -10 -10 -10 ------- Run | Yrd Mat Min Sub Traps Triggered 3 | . 3 . . Indirectly . | . . . . Trap Hack Attempts . | . . . . Triggered . | . . . . Disarmed . | . . . . Reprogrammed . | . . . . Reused . | . . . . Traps Extracted . | . . . . Installed . | . . . . Triggered . | . . . . Most Traps Carried 1 | . . . 1 Machines | -11 -10 -10 -10 ---------- Run | Yrd Mat Min Sub Machines Disabled 4 | . 2 1 1 Max in Single Turn 1 | . 1 1 1 Machines Repaired . | . . . . Machines Dismantled . | . . . . Machines Sabotaged . | . . . . Overloaded Fab Kills . | . . . . Hacking | -11 -10 -10 -10 --------- Run | Yrd Mat Min Sub Machines Accessed 9 | . 7 1 1 Terminals 5 | . 5 . . Fabricators . | . . . . Repair Stations . | . . . . Recycling Units 2 | . 2 . . Scanalyzers . | . . . . Garrison Access . | . . . . Total Hacks 22 | . 20 1 1 Successful 13 | . 11 1 1 Failed 9 | . 9 . . Catastrophic 2 | . 2 . . Database Lockouts . | . . . . Manual 17 | . 17 . . Terminals 16 | . 16 . . Fabricators . | . . . . Repair Stations . | . . . . Recycling Units 4 | . 4 . . Scanalyzers . | . . . . Garrison Access . | . . . . Terminal Hacks 3 | . 1 1 1 Open Door 1 | . . 1 . Terminal Index 1 | . 1 . . Proto ID Catalog 1 | . . . 1 Fabricator Hacks . | . . . . Repair Station Hacks . | . . . . Recycling Unit Hacks 1 | . 1 . . Retrieve Components 1 | . 1 . . Scanalyzer . | . . . . Garrison Access Hacks . | . . . . Unauthorized Hacks 9 | . 9 . . Terminals 7 | . 7 . . Botnet 2 | . 2 . . Skim 5 | . 5 . . Fabricators . | . . . . Repair Stations . | . . . . Recycling Units 2 | . 2 . . Tunnel 2 | . 2 . . Scanalyzers . | . . . . Garrison Access . | . . . . Data Cores Recovered . | . . . . Used . | . . . . Hacking Detections 6 | . 6 . . Full Trace Events . | . . . . Feedback Events . | . . . . Feedback Blocked . | . . . . Robot Schematics Acquired . | . . . . Robots Built . | . . . . Authchips . | . . . . Time . | . . . . Total Robot Build Rating . | . . . . Part Schematics Acquired . | . . . . Parts Built . | . . . . Authchips . | . . . . Time . | . . . . Total Part Build Rating . | . . . . Part Studies Acquired . | . . . . Parts Repaired . | . . . . Time . | . . . . Parts Recycled . | . . . . Recycled Matter . | . . . . Retrieved Matter . | . . . . Retrieved Components . | . . . . Parts Scanalyzed . | . . . . Part Schematics Acquired . | . . . . Parts Damaged . | . . . . Bothacking | -11 -10 -10 -10 ------------ Run | Yrd Mat Min Sub Used RIF Installer . | . . . . Robots Hacked . | . . . . Non-combat . | . . . . Combat . | . . . . Robot Hacks Applied . | . . . . Relay Couplers Released . | . . . . Fabnet Peak Effective % . | . . . . Robots Rewired . | . . . . Allies Hacked . | . . . . Hacks Repelled . | . . . . Allies | -11 -10 -10 -10 -------- Run | Yrd Mat Min Sub Total Allies 3 | . . 3 . Largest Group 3 | . . 3 3 Highest-Rated Group 40 | . . 40 40 Highest-Rated Ally 16 | . . 16 16 Total Orders . | . . . . Ally Attacks 28 | . . . 28 Total Damage 255 | . . . 255 Kills 2 | . . . 2 Allies Corrupted . | . . . . Allies Melted . | . . . . Intel | -11 -10 -10 -10 ------- Run | Yrd Mat Min Sub Active Infowar (turns) 133 | 45 28 . 60 Seismic 133 | 45 28 . 60 Robot Analysis Total . | . . . . Derelict Logs Recovered 3 | . . 2 1 Drone Launches . | . . . . Drone Recoveries . | . . . . Exploration | -11 -10 -10 -10 ------------- Run | Yrd Mat Min Sub Turns Passed 5536 | 116 2190 2011 1219 Spaces Moved 2912 | 61 1060 1198 593 Core 3 | 3 . . . Treads 2909 | 58 1060 1198 593 Legs . | . . . . Wheels . | . . . . Hover . | . . . . Flight . | . . . . Fastest Speed 50 | 50 160 160 160 Average Speed 159 | 154 160 160 160 Slowest Speed 160 | 160 160 160 160 Overloaded Moves . | . . . . Propulsion Burnouts . | . . . . Robots Hopped . | . . . . Potential Cave-ins 2 | . . 2 . Cave-ins Triggered . | . . . . Exploration Rate (%) 64 | 4 98 106 49 Regions Visited 3 Branch Regions 2 Pre-discovered Areas 5 | . 4 1 . Known Exits Taken 1 | . . 1 . Unknown Exits Taken 2 | 1 1 . . Scrap Searched 5 | . . 3 2 Spaces Dug 14 | . . 14 . Terrain Destroyed 62 | . . 61 1 Melee . | . . . . Projectile 1 | . . . 1 AOE 61 | . . 61 . Terrain Rammed . | . . . . Walls Destroyed . | . . . . Machines Disabled . | . . . . Actions | -11 -10 -10 -10 --------- Run | Yrd Mat Min Sub Total 3460 | 72 1412 1258 718 Wait 243 | . 220 4 19 Move 2909 | 60 1059 1197 593 Hop . | . . . . Pick Up 25 | 1 15 5 4 Fast Attach 15 | 7 7 . 1 Attach 4 | . . . 4 Detach . | . . . . Swap 23 | . 7 4 12 Drop 17 | . 8 5 4 Fire 179 | 4 80 14 81 Melee . | . . . . Ram . | . . . . Kick . | . . . . Crush 45 | . 16 29 . Escape Stasis . | . . . . Rewire . | . . . . Trap . | . . . . Miscellaneous . | . . . . Route ------- -11/Scrapyard -10/Materials (discovered 5 exits: *Mat x3 / *Min / Sub) -10/Mines (discovered 3 exits: *Mat x2 / *Sub) -10/Subcaves (discovered 1 exit: *Mat) History --------- Turn | Location | Event 12 | -11/Scrapyard | Discovered new exit (range 15) 117 | -11/Scrapyard | Entered Materials 318 | -10/Materials | Build established: Mutant 614 | -10/Materials | Discovered new exit (range 4) 1123 | -10/Materials | Discovered new exit (range 14) 1314 | -10/Materials | Discovered new exit (range 16) 1629 | -10/Materials | Discovered new exit (range 11) 1686 | -10/Materials | Learned 4 Recycling zone layouts 1759 | -10/Materials | Learned location of Storage (-7) 1820 | -10/Materials | Identified exit to Subcaves 1916 | -10/Materials | Learned Storage stockpile data 1950 | -10/Materials | Learned Storage terminal intel 1974 | -10/Materials | Learned Storage garrison access intel 2008 | -10/Materials | Learned location of Subcaves (-10) 2179 | -10/Materials | Learned Storage trap positions 2307 | -10/Materials | Entered Mines 2308 | -10/Mines | Identified exit to Materials 2314 | -10/Mines | Received a Rocket Launcher from a helpful Derelict 2390 | -10/Mines | Learned Materials stockpile data 2390 | -10/Mines | Joined a pair of Derelicts in attacking an 0b10 outpost 2863 | -10/Mines | Assisted by bots powering up and referring to "LRC-V3" 2979 | -10/Mines | Met a Derelict who couldn't figure out how to use a Trap Extractor 4297 | -10/Mines | Discovered exit to Subcaves (range 11) 4318 | -10/Mines | Entered Subcaves 4318 | -10/Subcaves | Accompanied by 3 allies 4319 | -10/Subcaves | Approached by a straggling Scientist 4319 | -10/Subcaves | Identified exit to Materials 4421 | -10/Subcaves | Shifting Twisted Machinery released Scrap Shield 4626 | -10/Subcaves | Visited 4L-MR0's lab 4644 | -10/Subcaves | Found Power Bank 4726 | -10/Subcaves | Shifting Twisted Machinery released Mak. Shrapnel Gun 4731 | -10/Subcaves | Shifting Twisted Machinery released Sub. Optics 4758 | -10/Subcaves | Shifting Twisted Machinery released Battle Rifle 4781 | -10/Subcaves | Shifting Twisted Machinery released Scrap Shield 5180 | -10/Subcaves | Learned Materials security intel 5318 | -10/Subcaves | A swath of the cavern ceiling suddenly collapsed 5488 | -10/Subcaves | A Subdweller sparked back to life 5488 | -10/Subcaves | A Subdweller sparked back to life 5488 | -10/Subcaves | A Subdweller sparked back to life 5493 | -10/Subcaves | Core integrity fell below 50% 5526 | -10/Subcaves | Core integrity fell below 20% 5533 | -10/Subcaves | Attached Power Bank, gained temporary slots: Power x3 5537 | -10/Subcaves | Destroyed by IL-F4M(R) with Subdweller Laser Last Messages --------------- 05466_ Flight Unit fries itself beyond repair. 05468_ Acquired 16 matter. 05470_ Flight Unit fries itself beyond repair. 05484_ Acquired 11 matter. 05488_ V1-4S0(R) creaks and sparks as it begins to move. 05488_ 40-DM7(R) creaks and sparks as it begins to move. 05488_ IL-F4M(R) creaks and sparks as it begins to move. 6H-JN5(c): "I think it's somewhere south of here" 05493_ V1-4S0(R) destroyed. 05507_ Lgt. Ion Engine destroyed. 05520_ 40-DM7(R) destroyed. 05520_ Switching to secondary target: IL-F4M(R). 05531_ Core Shielding destroyed. 05533_ Core temporarily expanded with Power slot. 05535_ IL-F4M(R) suffers critical hit (Destroy). Map ----- +----------------------------------------------------+ | ??????????# ###?## ### ######### ########??? | | ???????????# ### ## # ## ##?? | | ????????????# # # #?? | | ############# #?? | | ## # ## ### ##?# | | && ## # #### #### | | !%& ##### #??## ## | | ### ## ##???#### ##???## | | ##?##### ##???????# ###?????# | | ##??????## ###??????? #???????# # | | ????????# ???????? # ???? # ### ## | | ????????## #??????# # ## ?? % %##?#####? | | ????????? """??????##?# %###### # #???????? | | ????????? " "????????#####????## ### #???????? | | ????????#####"??????????????????# #### #???????? | | #????????????#?????????????#"### % #???????? | | #?????????????????????????##& #???????? | | #???????????????##????????# " ####???????? | | #?????######????# ###?????# ###???????????? | | #######" #?##?# #???###"! ##????????????? | | ##"##"" #? ## #?### =%" ##???????????? | | "" " """#?#"""" ### *! % #???????????? | | #""" """##?#""" ### #????????????? | | ####" "###"" % # ###????????????? | | ##??#%""" " "" % ######?? #??????????????? | | ????# """"" "" #@ ## ##??#??????????????? | | ????#%"""""" "" [%! #?????????????????? | | #??#!&%"" "" % R #?????????????????? | | ##?###! ###### "" # # ### #????????????????? | | "#???#* #????## #######??# #???????????????? | | ##?? ?????#####?????????# ?????????????? | | ???? ????????????????????? ???????????? | | ??? ?????????????????????? % ??????????? | | ??#????? ??????????????????????? %??????????? | | ??????? "???????????????????????? ???????????? | | ?????????????????????????????????? ##???????????? | | ???????????????????????????????????##????????????? | | ?????????????????????????????????????????????????? | | ?????????????????????????????????????????????????? | | ?????????????????????????????????????????????????? | | ?????????????????????????????????????????????????? | | ?????????????????????????????????????????????????? | | ?????????????????????????????????????????????????? | | ?????????????????????????????????????????????????? | | ?????????????????????????????????????????????????? | | ?????????????????????????????????????????????????? | | ?????????????????????????????????????????????????? | | ?????????????????????????????????????????????????? | | ?????????????????????????????????????????????????? | | ?????????????????????????????????????????????????? | +----------------------------------------------------+ Best States ------------- Heat Dissipation 25 Energy Generation 15 Energy Capacity 250 Matter Stores 300 Matter Capacity 300 Sight Range 16 Terrain Scan Density 10 Armor Coverage 225 Core Shielding 20 Evasion (%) 40 Targeting Accuracy 5 Recoil Reduction 2 Item Schematics ----------------- None Robot Schematics ------------------ None Fabricated ------------ Nothing Repaired ---------- Nothing Studied --------- None Alien Tech Used ----------------- None Achievements -------------- None Challenges ------------ None Game ------ Seed DispersalSuperdenseInterface Manual? 0 Play Time 00:21:15 Cumulative 466.0 hours Start 2025.10.30 @ 20:03:10 End 2025.10.30 @ 20:21:21 Sessions 1 Manual Loads 0 Difficulty Rogue Special Mode None Game No. 251 Rogue 251 Adventurer 0 Explorer 0 Win Type - Total 21 Types 13/1/5/1/0/0/0/1/0/0 Lore% 93 Gallery% 85 Achievement% 77 Wizard Run 0 Options --------- Layout 2 ASCII 0 Keyboard 1 Movement Vi Keybinds 0 Fullscreen 1 Font 28/Terminus Map View 50x52 Zoom Use 0% Tactical HUD 1 Map Filters NONE Filters NONE Steam 1 RUN: 909f29e8-b76c-41b0-82b0-2afdce50632e